fUST/lending_fUST_20260616
["ID","MTS","AMOUNT","RATE_DAILY","PERIOD"]
[425124737,1781539253000,-152.0,0.0001,2]
[425124934,1781539832000,-751.09841622,0.0001,2]
[425124932,1781539832000,-1908.18108316,0.0001,2]
[425124928,1781539832000,-500.0,9.9e-05,2]
[425124930,1781539832000,-4500.0,9.9e-05,2]
[425124936,1781539832000,-176.41838829,0.00010703,2]
[425124938,1781539832000,-254.87963427,0.00010935,2]
[425124940,1781539832000,-455.14220406,0.0001151,2]
[425124941,1781539832000,-654.74936907,0.0001151,2]
[425124943,1781539832000,-228.82390951,0.0001151,2]
[425124949,1781539832000,-334.90044591,0.00012255,2]
[425124951,1781539832000,-595.3785705,0.00012255,2]
[425124947,1781539832000,-186.05580328,0.00012255,2]
[425124945,1781539832000,-250.0,0.000121,2]
[425124954,1781539832000,-1338.26218185,0.00012255,2]
[425124953,1781539832000,-930.27901641,0.00012255,2]
[425124983,1781539832000,-500.0,0.000129,2]
[425124960,1781539832000,-333.13810992,0.00012255,2]
[425124958,1781539832000,-213.20839035,0.00012255,2]
[425124979,1781539832000,-301.6356384,0.000129,2]
[425124985,1781539832000,-14651.12339753,0.00013,2]
[425124981,1781539832000,-463.43197248,0.000129,2]
[425124977,1781539832000,-322.14990857,0.000129,2]
[425124987,1781539832000,-3032.55875386,0.00013,2]
[425124974,1781539832000,-180.4039488,0.000129,2]
[425124976,1781539832000,-206.17594149,0.000129,2]
[425124968,1781539832000,-192.146,0.00012663,2]
[425124962,1781539832000,-479.23915941,0.00012255,2]
[425124969,1781539832000,-191.847737,0.00012681,2]
[425124966,1781539832000,-744.0,0.00012663,2]
[425124964,1781539832000,-445.0,0.00012663,2]
[425124956,1781539832000,-186.55734156,0.00012255,2]
[425124971,1781539832000,-167.74309776,0.000129,2]
[425125435,1781539838000,-846.42301241,0.00013,2]
[425125433,1781539838000,-291.2910106,0.00010935,2]
[425125450,1781539841000,-3112.95,0.00013,2]
[425125491,1781539847000,-6678.82728106,0.00012699,2]
[425125490,1781539847000,-206626.83777589,0.00012699,2]
[425125492,1781539847000,-1156.65448679,0.00012699,2]
[425125494,1781539847000,-814.7996497,0.00012699,2]
[425125495,1781539847000,-78269.63832798,0.00012699,2]
[425125496,1781539847000,-1610.7046903,0.00012699,2]
[425125493,1781539847000,-9496.19036491,0.00012699,2]
[425125858,1781541038000,-525.9716115,0.00012299,2]
[425125857,1781541038000,-300.0,0.00012298,2]
[425125999,1781541041000,-4942.14640253,0.00012299,2]
[425127320,1781541054000,-500.0,0.00012398,2]
[425127303,1781541054000,-227746.98293649,0.00012299,2]
[425127316,1781541054000,-500.0,0.00012398,2]
[425127315,1781541054000,-500.0,0.00012398,2]
[425127318,1781541054000,-500.0,0.00012398,2]
[425127290,1781541054000,-328.52132253,0.00012299,2]
[425127311,1781541054000,-500.0,0.00012398,2]
[425127288,1781541054000,-2347.19,0.00012299,2]
[425127279,1781541054000,-1472.27802912,0.00012299,2]
[425127286,1781541054000,-4350.51824344,0.00012299,2]
[425127313,1781541054000,-500.0,0.00012398,2]
[425127309,1781541054000,-508.14369438,0.00012398,2]
[425127342,1781541054000,-745.2003503,0.00012399,2]
[425127307,1781541054000,-29309.32708811,0.00012299,2]
[425127324,1781541054000,-450.00253455,0.00012398,2]
[425127322,1781541054000,-500.0,0.00012398,2]
[425127326,1781541054000,-500.0,0.00012398,2]
[425127328,1781541054000,-500.0,0.00012398,2]
[425127330,1781541054000,-500.0,0.00012398,2]
[425127334,1781541054000,-500.0,0.00012398,2]
[425127332,1781541054000,-500.0,0.00012398,2]
[425127344,1781541054000,-595.5958337,0.00012399,2]
[425127336,1781541054000,-500.0,0.00012398,2]
[425127340,1781541054000,-55057.91275729,0.00012399,2]
[425127338,1781541054000,-631.14062762,0.00012398,2]
[425127305,1781541054000,-7855.68216755,0.00012299,2]
[425128062,1781541248000,5000.0,0.000115,2]
[425128063,1781541257000,151.0,0.000115,2]
[425128068,1781541545000,-1448.92501265,0.00023729,120]
[425128069,1781541545000,-165.36636507,0.00023729,120]
[425128070,1781541545000,-156.62490007,0.00023729,45]
[425128071,1781541545000,-484.9906301,0.00023729,120]
[425128074,1781541545000,-968.66641607,0.00023729,120]
[425128075,1781541545000,-11679.0,0.00023729,30]
[425128072,1781541545000,-20000.0,0.00023729,120]
[425128079,1781541545000,-100000.0,0.00023729,30]
[425128077,1781541545000,-152.17518551,0.00023729,120]
[425128078,1781541545000,-100000.0,0.00023729,30]
[425128076,1781541545000,-897.0,0.00023729,30]
[425128082,1781541545000,-770.25001599,0.00023729,120]
[425128080,1781541545000,-206.5465273,0.00023729,120]
[425128073,1781541545000,-283.9567952,0.00023729,120]
[425128083,1781541545000,-257.32079552,0.00023729,120]
[425128096,1781541545000,-721.0930475,0.00023729,120]
[425128095,1781541545000,-151.0,0.00023729,120]
[425128093,1781541545000,-205.35737885,0.00023729,120]
[425128094,1781541545000,-1492.35929643,0.00023729,120]
[425128092,1781541545000,-205.35737885,0.00023729,120]
[425128090,1781541545000,-206.01316165,0.00023729,120]
[425128081,1781541545000,-152.78903452,0.00023729,120]
[425128089,1781541545000,-1093943.25,0.00023729,120]
[425128088,1781541545000,-163.79423308,0.00023729,120]
[425128085,1781541545000,-161.0,0.00023729,30]
[425128084,1781541545000,-199.95384805,0.00023729,30]
[425128086,1781541545000,-50000.0,0.00023729,120]
[425128087,1781541545000,-151.0,0.00023729,30]
[425128091,1781541545000,-205.35737885,0.00023729,120]
[425128100,1781541567000,-263.45800738,0.00023826,120]
[425128098,1781541567000,-155.0,0.00023826,120]
[425128097,1781541567000,-207.8209061,0.00023729,120]
[425128099,1781541567000,-212.11579061,0.00023826,120]
[425128104,1781541567000,-500.0,0.000242,120]
[425128102,1781541567000,-1230.63861117,0.00024,120]
[425128103,1781541567000,-689.19731706,0.00024112,120]
[425128105,1781541567000,-151.0,0.00024285,120]
[425128106,1781541567000,-278.92,0.00024582,120]
[425128101,1781541567000,-279.53934168,0.00023826,120]
[425128968,1781541649000,155.0,0.00023729,120]
[425130016,1781541680000,160.0,0.00023729,120]
[425131849,1781541754000,100000.0,0.00023729,30]
[425132250,1781542158000,155.67996668,0.00023729,120]
[425132282,1781542191000,160.0,0.00023729,120]
[425133058,1781542233000,-300.0,0.00011898,2]
[425133057,1781542233000,-1913.67672557,0.00011738,2]
[425133060,1781542233000,-9791.95223783,0.00011999,2]
[425133059,1781542233000,-11326.94219569,0.00011899,2]
[425133106,1781542238000,-67731.66209403,0.00012255,2]
[425133103,1781542238000,-217556.05271298,0.00011999,2]
[425133105,1781542238000,-528327.0301447,0.00012255,2]
[425133104,1781542238000,-599.7,0.000121,2]
[425133102,1781542238000,-4971.68155831,0.00011999,2]
[425133107,1781542239000,-7670.17921266,0.00012255,2]
[425133108,1781542239000,-48354.69939361,0.00012255,2]
[425133109,1781542239000,-23623.95552117,0.00012255,2]
[425133134,1781542241000,-25701.90181543,0.00013,2]
[425133144,1781542241000,-159.427606,0.00013399,2]
[425133148,1781542241000,-500.0,0.00013698,2]
[425133150,1781542241000,-500.0,0.00013698,2]
[425133133,1781542241000,-180.72506256,0.00012977,2]
[425133141,1781542241000,-3343.9889095,0.00013255,2]
[425133140,1781542241000,-837.81582024,0.00013207,2]
[425133138,1781542241000,-420.0,0.00013063,2]
[425133146,1781542241000,-500.0,0.00013698,2]
[425133142,1781542241000,-514.56154738,0.00013327,2]
[425133139,1781542241000,-33729.514423,0.000132,2]
[425133169,1781542241000,-524.28,0.00013698,2]
[425133154,1781542241000,-500.0,0.00013698,2]
[425133152,1781542241000,-502.58846015,0.00013698,2]
[425133158,1781542241000,-500.0,0.00013698,2]
[425133170,1781542241000,-524.28,0.00013698,2]
[425133160,1781542241000,-201.22444736,0.00013698,2]
[425133159,1781542241000,-500.0,0.00013698,2]
[425133162,1781542241000,-524.28,0.00013698,2]
[425133161,1781542241000,-500.0,0.00013698,2]
[425133168,1781542241000,-524.28,0.00013698,2]
[425133156,1781542241000,-500.0,0.00013698,2]
[425133132,1781542241000,-294.84704892,0.000129,2]
[425133115,1781542241000,-389.03904274,0.00012255,2]
[425133131,1781542241000,-579.59778546,0.000129,2]
[425133163,1781542241000,-524.28,0.00013698,2]
[425133112,1781542241000,-318.06916808,0.00011642,2]
[425133113,1781542241000,-182506.90909336,0.00012255,2]
[425133119,1781542241000,-957.0,0.00012709,2]
[425133124,1781542241000,-216.12400193,0.000129,2]
[425133114,1781542241000,-340.74991231,0.00012255,2]
[425133116,1781542241000,-159.427606,0.00012359,2]
[425133117,1781542241000,-1418.0,0.00012709,2]
[425133118,1781542241000,-1840.0,0.00012709,2]
[425133122,1781542241000,-151.145,0.00012709,2]
[425133123,1781542241000,-159.427606,0.00012879,2]
[425133120,1781542241000,-878.183,0.00012709,2]
[425133125,1781542241000,-246.99885935,0.000129,2]
[425133121,1781542241000,-192.146,0.00012709,2]
[425133126,1781542241000,-385.93571774,0.000129,2]
[425133137,1781542241000,-11326.94219567,0.00013042,2]
[425133136,1781542241000,-301.16871441,0.00013,2]
[425133135,1781542241000,-1005.01,0.00013,2]
[425133130,1781542241000,-402.90136349,0.000129,2]
[425133128,1781542241000,-225.62476355,0.000129,2]
[425133127,1781542241000,-555.19168611,0.000129,2]
[425133129,1781542241000,-257.85687263,0.000129,2]
[425133167,1781542241000,-524.28,0.00013698,2]
[425133143,1781542241000,-176.31084601,0.00013399,2]
[425133166,1781542241000,-524.28,0.00013698,2]
[425133198,1781542241000,-151.0,0.00013699,2]
[425133200,1781542241000,-417.15472785,0.0001375,7]
[425133194,1781542241000,-151.0,0.00013699,2]
[425133197,1781542241000,-151.0,0.00013699,2]
[425133199,1781542241000,-37413.86,0.0001375,7]
[425133201,1781542241000,-159.427606,0.00013919,2]
[425133205,1781542241000,-1902.0,0.00014,2]
[425133204,1781542241000,-1499.26384036,0.00013978,3]
[425133202,1781542241000,-212.925265,0.00013968,7]
[425133203,1781542241000,-500.0,0.00013972,2]
[425133206,1781542241000,-11326.94219567,0.00014185,2]
[425133210,1781542241000,-154.72,0.00014318,2]
[425133214,1781542241000,-151.0,0.0001452,2]
[425133216,1781542241000,-151.0,0.0001452,2]
[425133215,1781542241000,-151.0,0.0001452,2]
[425133209,1781542241000,-500.0,0.00014246,2]
[425133217,1781542241000,-151.0,0.0001452,2]
[425133211,1781542241000,-587.0,0.00014341,2]
[425133207,1781542241000,-160.0,0.00014246,2]
[425133212,1781542241000,-159.427606,0.0001444,2]
[425133208,1781542241000,-237.67331526,0.00014246,2]
[425133195,1781542241000,-151.0,0.00013699,2]
[425133193,1781542241000,-742.98080534,0.00013699,2]
[425133196,1781542241000,-151.0,0.00013699,2]
[425133192,1781542241000,-400.251513,0.00013699,2]
[425133164,1781542241000,-524.28,0.00013698,2]
[425133173,1781542241000,-524.28,0.00013698,2]
[425133174,1781542241000,-524.28,0.00013698,2]
[425133171,1781542241000,-524.28,0.00013698,2]
[425133172,1781542241000,-524.28,0.00013698,2]
[425133175,1781542241000,-524.28,0.00013698,2]
[425133178,1781542241000,-524.28,0.00013698,2]
[425133179,1781542241000,-524.28,0.00013698,2]
[425133176,1781542241000,-524.28,0.00013698,2]
[425133191,1781542241000,-165.29009,0.00013699,2]
[425133182,1781542241000,-524.28,0.00013698,2]
[425133177,1781542241000,-524.28,0.00013698,2]
[425133181,1781542241000,-524.28,0.00013698,2]
[425133190,1781542241000,-5812.022073,0.00013699,2]
[425133180,1781542241000,-524.28,0.00013698,2]
[425133188,1781542241000,-240.494186,0.00013699,2]
[425133187,1781542241000,-500.0,0.00013698,2]
[425133189,1781542241000,-151.0,0.00013699,2]
[425133184,1781542241000,-524.28,0.00013698,2]
[425133186,1781542241000,-321.97362574,0.00013698,2]
[425133185,1781542241000,-524.43977127,0.00013698,2]
[425133183,1781542241000,-524.28,0.00013698,2]
[425133213,1781542241000,-152837.00797047,0.0001452,2]
[425133165,1781542241000,-524.28,0.00013698,2]
[425133220,1781542242000,-42022.44347715,0.0001453,3]
[425133221,1781542242000,-1000.5,0.0001453,3]
[425133219,1781542242000,-500.0,0.0001452,2]
[425133218,1781542242000,-151.0,0.0001452,2]
[425133237,1781542246000,-1975.12526042,0.00011899,2]
[425134706,1781542351000,15007.07443982,0.00023729,120]
[425134708,1781542380000,2000.0,0.00023729,120]
[425134713,1781542442000,3365.52473385,0.000115,2]
[425134716,1781542457000,5000.0,0.000115,2]
[425134718,1781542505000,329.0,0.00024657,120]
[425134729,1781542572000,156.0,0.00011469,2]
[425135807,1781542649000,6039.53148096,7.6e-05,2]
[425136014,1781542663000,1463.57576156,0.0001,2]
[425136048,1781542665000,582.09473718,9.5e-05,2]
[425136085,1781542673000,2043.09353563,0.000115,2]
[425136242,1781542741000,161.34277429,0.00023645,120]
[425136880,1781543130000,5000.0,0.00023645,120]
[425137070,1781543434000,-154.29756214,0.00012,2]
[425137071,1781543434000,-200.39,0.000121,2]
[425137072,1781543434000,-159.427606,0.00012113,2]
[425137074,1781543434000,-116.14116934,0.0001292,2]
[425137075,1781543434000,-183.85883066,0.0001292,2]
[425137076,1781543434000,-311.65542488,0.00012921,2]
[425137073,1781543434000,-153.61630318,0.00012799,2]
[425137077,1781543434000,-575.04505306,0.00012921,2]
[425137324,1781543447000,-304.0,0.00012921,2]
[425137341,1781543448000,-278.47215189,0.00012921,2]
[425137340,1781543448000,-649.29952206,0.00012921,2]
[425137449,1781544632000,-744.0,0.0001276,2]
[425137446,1781544632000,-300.0,0.00012759,2]
[425137444,1781544632000,-300.0,0.00012759,2]
[425137448,1781544632000,-445.0,0.0001276,2]
[425137453,1781544632000,-61.24149427,0.00013365,14]
[425137459,1781544632000,-43.27348033,0.00013431,2]
[425137455,1781544632000,-236.31846942,0.00013365,14]
[425137457,1781544632000,-588.6463401,0.00013425,2]
[425137451,1781544632000,-192.146,0.0001276,2]
[425137548,1781544638000,-689.60601291,0.00014229,2]
[425137549,1781544638000,-689.60601291,0.00014229,2]
[425137541,1781544638000,-626.13436041,0.00014229,2]
[425137539,1781544638000,-500.0,0.00014228,2]
[425137550,1781544638000,-689.60601291,0.00014229,2]
[425137538,1781544638000,-500.0,0.00014228,2]
[425137532,1781544638000,-159.19964799,0.00013759,2]
[425137528,1781544638000,-178.22660117,0.00013699,2]
[425137540,1781544638000,-365.83497925,0.00014228,2]
[425137531,1781544638000,-457.83867746,0.00013699,2]
[425137530,1781544638000,-318.2617878,0.00013699,2]
[425137537,1781544638000,-292.34895862,0.00014228,2]
[425137536,1781544638000,-616.92866392,0.00014228,2]
[425137533,1781544638000,-339.0,0.00013996,2]
[425137529,1781544638000,-203.6875442,0.00013699,2]
[425137534,1781544638000,-420.0,0.00013996,2]
[425137535,1781544638000,-2617.83371145,0.0001413,2]
[425137526,1781544638000,-200.125756,0.00013699,2]
[425137525,1781544638000,-172.91,0.0001351,2]
[425137523,1781544638000,-1418.0,0.0001276,2]
[425137524,1781544638000,-545.37285977,0.00013431,2]
[425137527,1781544638000,-521.20103494,0.00013699,2]
[425137542,1781544638000,-689.60601291,0.00014229,2]
[425137552,1781544638000,-689.60601291,0.00014229,2]
[425137543,1781544638000,-689.60601291,0.00014229,2]
[425137544,1781544638000,-689.60601291,0.00014229,2]
[425137569,1781544638000,-828732.42188093,0.0001423,2]
[425137568,1781544638000,-343.04103158,0.0001423,2]
[425137567,1781544638000,-695.87515849,0.00014229,2]
[425137566,1781544638000,-695.87515849,0.00014229,2]
[425137562,1781544638000,-695.87515849,0.00014229,2]
[425137560,1781544638000,-695.87515849,0.00014229,2]
[425137564,1781544638000,-695.87515849,0.00014229,2]
[425137561,1781544638000,-695.87515849,0.00014229,2]
[425137559,1781544638000,-695.87515849,0.00014229,2]
[425137565,1781544638000,-695.87515849,0.00014229,2]
[425137557,1781544638000,-689.60601291,0.00014229,2]
[425137558,1781544638000,-695.87515849,0.00014229,2]
[425137555,1781544638000,-689.60601291,0.00014229,2]
[425137553,1781544638000,-689.60601291,0.00014229,2]
[425137554,1781544638000,-689.60601291,0.00014229,2]
[425137556,1781544638000,-689.60601291,0.00014229,2]
[425137546,1781544638000,-689.60601291,0.00014229,2]
[425137551,1781544638000,-689.60601291,0.00014229,2]
[425137545,1781544638000,-689.60601291,0.00014229,2]
[425137547,1781544638000,-689.60601291,0.00014229,2]
[425137563,1781544638000,-695.87515849,0.00014229,2]
[425137593,1781544646000,-2017.52951503,0.0001423,2]
[425137595,1781544646000,1840.0,0.0001276,2]
[425137594,1781544646000,-7596.47391786,0.0001423,2]
[425137610,1781544670000,-957.0,0.00012703,2]
[425137615,1781544791000,172.952245,0.00012629,120]
[425137616,1781544817000,6000.0,0.000115,2]
[425137686,1781545832000,-67.9769098,0.00012329,2]
[425137685,1781545832000,-300.0,0.00012328,2]
[425137691,1781545832000,-163.02,0.00012329,2]
[425137688,1781545832000,-281.7,0.00012329,2]
[425137690,1781545832000,-195.63,0.00012329,2]
[425137689,1781545832000,-234.75,0.00012329,2]
[425137700,1781545832000,-410.0,0.00013529,2]
[425137701,1781545832000,-300.1257576,0.00013699,2]
[425137687,1781545832000,-270.0630902,0.00012329,2]
[425137702,1781545832000,-1902.27291452,0.0001383,2]
[425137692,1781545832000,-815.15,0.00012329,2]
[425137695,1781545832000,-1418.0,0.00012703,2]
[425137697,1781545832000,-744.0,0.00012703,2]
[425137699,1781545832000,-155.21875911,0.00013256,2]
[425137703,1781545832000,-392.2130386,0.0001383,2]
[425137694,1781545832000,-1840.0,0.00012703,2]
[425137696,1781545832000,-957.0,0.00012703,2]
[425137693,1781545832000,-172.952245,0.00012629,2]
[425137698,1781545832000,-192.146,0.00012703,2]
[425137767,1781545841000,-509.681535,0.00014028,2]
[425137754,1781545841000,-509.681535,0.00014028,2]
[425137755,1781545841000,-509.681535,0.00014028,2]
[425137766,1781545841000,-509.681535,0.00014028,2]
[425137765,1781545841000,-509.681535,0.00014028,2]
[425137756,1781545841000,-509.681535,0.00014028,2]
[425137757,1781545841000,-509.681535,0.00014028,2]
[425137759,1781545841000,-509.681535,0.00014028,2]
[425137763,1781545841000,-509.681535,0.00014028,2]
[425137764,1781545841000,-509.681535,0.00014028,2]
[425137762,1781545841000,-509.681535,0.00014028,2]
[425137750,1781545841000,-509.681535,0.00014028,2]
[425137760,1781545841000,-509.681535,0.00014028,2]
[425137761,1781545841000,-509.681535,0.00014028,2]
[425137769,1781545841000,-522.42357337,0.00014028,2]
[425137768,1781545841000,-509.681535,0.00014028,2]
[425137779,1781545841000,-686.35648778,0.00014028,2]
[425137758,1781545841000,-509.681535,0.00014028,2]
[425137746,1781545841000,-151.0,0.00014022,2]
[425137747,1781545841000,-151.0,0.00014022,2]
[425137748,1781545841000,-188.75178884,0.00014022,2]
[425137780,1781545841000,-686.35648778,0.00014028,2]
[425137731,1781545841000,-5140.00185033,0.0001383,2]
[425137732,1781545841000,-294.188292,0.00013915,7]
[425137735,1781545841000,-408.83462172,0.00013929,2]
[425137736,1781545841000,-40941.70749244,0.0001393,2]
[425137737,1781545841000,-3209.93743149,0.0001393,2]
[425137738,1781545841000,-151.0,0.00014022,2]
[425137739,1781545841000,-151.0,0.00014022,2]
[425137751,1781545841000,-509.681535,0.00014028,2]
[425137740,1781545841000,-151.0,0.00014022,2]
[425137734,1781545841000,-500.0,0.00013929,2]
[425137752,1781545841000,-509.681535,0.00014028,2]
[425137742,1781545841000,-151.0,0.00014022,2]
[425137753,1781545841000,-509.681535,0.00014028,2]
[425137741,1781545841000,-151.0,0.00014022,2]
[425137743,1781545841000,-151.0,0.00014022,2]
[425137745,1781545841000,-151.0,0.00014022,2]
[425137744,1781545841000,-151.0,0.00014022,2]
[425137733,1781545841000,-500.0,0.00013929,2]
[425137770,1781545841000,-522.42357337,0.00014028,2]
[425137749,1781545841000,-438.29405229,0.00014028,2]
[425137771,1781545841000,-522.42357337,0.00014028,2]
[425137806,1781545841000,-535.06118633,0.00014229,2]
[425137799,1781545841000,-500.0,0.00014229,2]
[425137803,1781545841000,-342.43915925,0.00014229,2]
[425137801,1781545841000,-500.0,0.00014229,2]
[425137797,1781545841000,-500.0,0.00014229,2]
[425137798,1781545841000,-500.0,0.00014229,2]
[425137800,1781545841000,-500.0,0.00014229,2]
[425137804,1781545841000,-500.0,0.00014229,2]
[425137807,1781545841000,-228.69402106,0.0001423,2]
[425137805,1781545841000,-501.73542076,0.00014229,2]
[425137811,1781545841000,-306.56,0.00014434,2]
[425137812,1781545841000,-306.56,0.00014509,2]
[425137810,1781545841000,-306.56,0.00014359,2]
[425137813,1781545841000,-76050.19118902,0.0001453,3]
[425137814,1781545841000,-36206.62959478,0.0001453,3]
[425137815,1781545841000,-1689.72065281,0.0001453,3]
[425137809,1781545841000,-769.71762021,0.00014354,2]
[425137772,1781545841000,-522.42357337,0.00014028,2]
[425137802,1781545841000,-500.0,0.00014229,2]
[425137796,1781545841000,-299.63426434,0.00014229,2]
[425137795,1781545841000,-1115.01508555,0.00014229,2]
[425137808,1781545841000,-306.56,0.00014284,2]
[425137774,1781545841000,-522.42357337,0.00014028,2]
[425137776,1781545841000,-522.42357337,0.00014028,2]
[425137773,1781545841000,-522.42357337,0.00014028,2]
[425137777,1781545841000,-522.42357337,0.00014028,2]
[425137775,1781545841000,-522.42357337,0.00014028,2]
[425137793,1781545841000,-496.05831856,0.00014229,2]
[425137781,1781545841000,-172.852,0.00014029,2]
[425137784,1781545841000,-500.0,0.00014029,2]
[425137783,1781545841000,-558.55850572,0.00014029,2]
[425137785,1781545841000,-217.50029529,0.00014029,2]
[425137778,1781545841000,-522.42357337,0.00014028,2]
[425137786,1781545841000,-1136.43,0.0001403,2]
[425137789,1781545841000,-177.235454,0.00014142,2]
[425137792,1781545841000,-279.03280419,0.00014229,2]
[425137788,1781545841000,-500.0,0.00014129,2]
[425137790,1781545841000,-500.0,0.00014228,2]
[425137791,1781545841000,-155.01822455,0.00014229,2]
[425137794,1781545841000,-775.09112276,0.00014229,2]
[425137782,1781545841000,-500.0,0.00014029,2]
[425137787,1781545841000,-500.0,0.00014122,2]
[425137824,1781545843000,-1297.50219742,0.0001453,3]
[425137828,1781545846000,-3845.97375481,0.0001453,3]
[425137827,1781545846000,-582.58618892,0.0001453,3]
[425137960,1781547032000,-1082.0,0.00012731,2]
[425137957,1781547032000,-433.45811007,0.00012352,2]
[425137959,1781547032000,-1418.0,0.00012731,2]
[425137958,1781547032000,-500.0,0.00012603,2]
[425137984,1781547038000,-744.0,0.00012731,2]
[425137983,1781547038000,-445.0,0.00012731,2]
[425137985,1781547038000,-192.146,0.00012731,2]
[425137982,1781547038000,-758.0,0.00012731,2]
[425137986,1781547038000,-172.854,0.00013456,2]
[425137988,1781547038000,-50451.28858013,0.0001363,2]
[425137987,1781547038000,-32474.42659968,0.0001363,2]
[425137990,1781547038000,-442.99999999,0.0001363,2]
[425137989,1781547038000,-1449.97840101,0.0001363,2]
[425138012,1781547043000,-2439.82511158,0.0001363,2]
[425138011,1781547043000,-3128.59410575,0.0001363,2]
[425138017,1781547046000,-6320.20764113,0.0001363,2]
[425138018,1781547046000,-8078.709267,0.0001363,2]
[425138015,1781547046000,-19211.11784142,0.0001363,2]
[425138016,1781547046000,-966.80910825,0.0001363,2]
[425138020,1781547047000,-116800.85829555,0.0001363,2]
[425138019,1781547047000,-2452.93688462,0.0001363,2]
[425138124,1781547185000,15007.07443982,0.00023572,120]
[425138125,1781547186000,2000.0,0.00023572,120]
[425140146,1781548254000,-186.0,0.00012944,2]
[425140142,1781548254000,-326.8286358,0.00012082,2]
[425140148,1781548254000,-2888.14543567,0.000135,2]
[425140144,1781548254000,-445.0,0.00012944,2]
[425146124,1781549098000,-931.92966269,0.00013518,2]
[425146115,1781549098000,-1418.0,0.00012944,2]
[425146116,1781549098000,-957.0,0.00012944,2]
[425146118,1781549098000,-445.0,0.00013144,2]
[425146120,1781549098000,-2073.61078389,0.00013518,2]
[425146119,1781549098000,-186.0,0.00013144,2]
[425146117,1781549098000,-1840.0,0.00012944,2]
[425146122,1781549098000,-414.60556676,0.00013518,2]
[425146121,1781549098000,-362.77987092,0.00013518,2]
[425146123,1781549098000,-647.82119807,0.00013518,2]
[425146127,1781549098000,-300.56606222,0.00013518,2]
[425146126,1781549098000,-192.36227982,0.00013518,2]
[425146134,1781549098000,-306.8058366,0.00014328,2]
[425146132,1781549098000,-166.67,0.00014192,2]
[425146131,1781549098000,-442.84697214,0.00014185,2]
[425146133,1781549098000,-238.67055227,0.00014229,2]
[425146129,1781549098000,-198.0,0.00014159,2]
[425146128,1781549098000,-432.38231447,0.00013518,2]
[425146125,1781549098000,-168.31699484,0.00013518,2]
[425146130,1781549098000,-197.99,0.00014161,2]
[425146144,1781549099000,-500.0,0.00014328,2]
[425146151,1781549099000,-500.0,0.00014328,2]
[425146150,1781549099000,-500.0,0.00014328,2]
[425146148,1781549099000,-500.0,0.00014328,2]
[425146146,1781549099000,-500.0,0.00014328,2]
[425146145,1781549099000,-500.0,0.00014328,2]
[425146147,1781549099000,-500.0,0.00014328,2]
[425146149,1781549099000,-500.0,0.00014328,2]
[425146139,1781549099000,-500.0,0.00014328,2]
[425146141,1781549099000,-500.0,0.00014328,2]
[425146140,1781549099000,-500.0,0.00014328,2]
[425146143,1781549099000,-500.0,0.00014328,2]
[425146137,1781549099000,-500.0,0.00014328,2]
[425146138,1781549099000,-500.0,0.00014328,2]
[425146135,1781549099000,-500.0,0.00014328,2]
[425146136,1781549099000,-500.0,0.00014328,2]
[425146142,1781549099000,-500.0,0.00014328,2]
[425146154,1781549099000,-500.0,0.00014328,2]
[425146161,1781549099000,-500.0,0.00014328,2]
[425146155,1781549099000,-500.0,0.00014328,2]
[425146152,1781549099000,-500.0,0.00014328,2]
[425146170,1781549099000,-500.0,0.00014328,2]
[425146171,1781549099000,-561.38444632,0.00014328,2]
[425146169,1781549099000,-253.76852734,0.00014328,2]
[425146167,1781549099000,-500.0,0.00014328,2]
[425146168,1781549099000,-500.0,0.00014328,2]
[425146165,1781549099000,-500.0,0.00014328,2]